bitfinex-derivatives/quotes_SOLF0:USTF0_20250328
["timestamp","ask_amount","ask_price","bid_price","bid_amount"]
[1743184847893,12.30334567,130.13,130.08,12.30334567]
[1743184848097,12.30334567,130.12,130.08,12.30334567]
[1743184848295,19.99474567,130.12,130.1,7.6923]
[1743184848799,19.99474567,130.12,130.09,7.74871088]
[1743184848999,7.6918,130.11,130.09,7.74871088]
[1743184849202,7.6918,130.11,130.09,0.05601088]
[1743184849203,19.99514567,130.11,130.09,0.05601088]
[1743184851303,19.99514567,130.11,130.09,7.74891088]
[1743184851903,7.6918,130.11,130.09,7.74891088]
[1743184852298,12.30334567,130.12,130.09,7.74891088]
[1743184852299,19.99484567,130.12,130.09,7.74891088]
[1743184852902,12.30334567,130.12,130.09,7.74891088]
[1743184853504,19.99484567,130.12,130.09,7.74891088]
[1743184854004,12.30334567,130.12,130.09,7.74891088]
[1743184854204,12.30334567,130.12,130.1,7.6923]
[1743184854704,12.30334567,130.13,130.11,7.6917]
[1743184855001,2.1014,130.15,130.11,12.30334567]
[1743184855002,12.30334567,130.15,130.11,12.30334567]
[1743184855204,40.26334567,130.16,130.14,7.69]
[1743184855398,12.30334567,130.15,130.12,0.05367108]
[1743184855801,12.30334567,130.15,130.13,7.6903]
[1743184856100,1.33756126,130.23,130.12,12.35701675]
[1743184856305,19.99124567,130.18,130.12,12.30334567]
[1743184856506,19.99124567,130.18,130.16,0.04990469]
[1743184856804,19.99124567,130.18,130.16,7.73860469]
[1743184857503,12.30334567,130.17,130.16,7.73860469]
[1743184857702,12.30334567,130.17,130.16,0.04990469]
[1743184858199,19.99154567,130.17,130.16,0.04990469]
[1743184859304,7.6899,130.15,130.12,7.6909]
[1743184859505,12.30334567,130.14,130.12,7.6909]
[1743184859804,7.69,130.14,130.12,7.6909]
[1743184860106,12.30334567,130.15,130.11,7.6915]
[1743184860306,7.6909,130.13,130.12,0.05661381]
[1743184860494,19.99424567,130.13,130.12,0.05661381]
[1743184860695,12.30334567,130.13,130.07,12.30334567]
[1743184860898,12.30334567,130.11,130.06,12.30334567]
[1743184861098,19.99554567,130.11,130.06,12.30334567]
[1743184861297,12.30334567,130.11,130.07,12.30334567]
[1743184861504,40.24334567,130.12,130.07,12.30334567]
[1743184861905,0.05130149,130.11,130.1,7.692]
[1743184862104,0.05130149,130.11,130.1,19.99534567]
[1743184862297,0.05130149,130.11,130.1,7.692]
[1743184865799,30.03447482,130.15,130.08,0.05080751]
[1743184865800,27.94,130.16,130.13,7.69]
[1743184866198,35.6292,130.16,130.13,7.69]
[1743184866399,35.6292,130.16,130.08,22.34487482]
[1743184867003,35.6292,130.16,130.13,7.6901]
[1743184867508,35.67816576,130.16,130.13,7.6901]
[1743184868605,0.04896576,130.16,130.11,0.05486995]
[1743184868805,0.04896576,130.16,130.11,3.99416995]
[1743184869203,0.04896576,130.16,130.15,7.6894]
[1743184871603,0.04896576,130.16,130.14,0.04861059]
[1743184873614,7.6894,130.15,130.14,0.04861059]
[1743184873814,0.04896576,130.16,130.14,0.04861059]
[1743184874310,7.6894,130.15,130.14,0.04861059]
[1743184877510,0.04896576,130.16,130.14,0.04861059]
[1743184878316,0.04896576,130.16,130.15,7.6894]
[1743184878713,0.04896576,130.16,130.14,0.04861059]
[1743184879616,7.73806576,130.16,130.14,0.04861059]
[1743184880116,7.6894,130.15,130.14,0.04861059]
[1743184880324,0.04896576,130.16,130.14,0.04861059]
[1743184880715,7.73806576,130.16,130.14,0.04861059]
[1743184882216,0.04896576,130.16,130.14,0.04861059]
[1743184882713,0.04896576,130.16,130.14,7.73811059]
[1743184882916,0.04896576,130.16,130.14,0.04861059]
[1743184883310,0.04896576,130.16,130.15,7.6894]
[1743184886306,0.04896576,130.16,130.15,21.97664105]
[1743184888111,0.04896576,130.16,130.15,7.6894]
[1743184894221,14.33620681,130.16,130.14,7.73831059]
[1743184894421,14.33620681,130.16,130.14,0.04861059]
[1743184894811,14.33620681,130.16,130.14,7.73811059]
[1743184895023,22.02520681,130.16,130.14,0.04861059]
[1743184895329,14.33620681,130.16,130.14,0.04861059]
[1743184895521,22.02510681,130.16,130.14,0.04861059]
[1743184896520,21.97664105,130.15,130.14,0.04861059]
[1743184897233,7.6912,130.12,130.1,84.39817763]
[1743184897422,21.97844105,130.12,130.1,84.39817763]
[1743184897724,14.28724105,130.12,130.1,84.39817763]
[1743184898324,21.97884105,130.12,130.1,84.39817763]
[1743184898523,14.33853501,130.12,130.1,0.05127321]
[1743184898721,14.28724105,130.11,130.1,0.05127321]
[1743184899426,21.97894105,130.11,130.1,0.05127321]
[1743184905929,14.28724105,130.11,130.1,0.05127321]
[1743184906730,14.28724105,130.11,130.1,7.74357321]
[1743184907133,0.05129396,130.12,130.1,0.05127321]
[1743184907441,0.05129396,130.12,130.11,21.97894105]
[1743184907628,0.05129396,130.12,130.11,7.6917]
[1743184909735,0.05129396,130.12,130.1,7.74327321]
[1743184909931,14.33853501,130.12,130.1,0.05127321]
[1743184910538,42.22724105,130.11,130.08,11.97509]
[1743184910741,42.22724105,130.11,130.04,84.39817763]
[1743184910742,7.6953,130.05,130.04,84.39817763]
[1743184911040,54.81898719,130.05,130.04,84.39817763]
[1743184912047,7.6959,130.04,130.03,150.4448525]
[1743184912442,7.6965,130.03,130.02,210.87182264]
[1743184912639,26.88018719,130.03,130.02,22.02721298]
[1743184913252,26.88018719,130.03,129.95,131.35567292]
[1743184913253,47.12368719,130.03,129.95,131.35567292]
[1743184913446,19.18368719,130.0,129.95,129.22917292]
[1743184913752,35.6389,129.99,129.98,0.04862827]
[1743184914742,54.82258719,129.99,129.98,0.04862827]
[1743184918349,7.7006,129.96,129.95,1.9573]
[1743184918655,35.6606,129.96,129.95,1.9573]
[1743184919649,35.6606,129.96,129.94,0.05681752]
[1743184920349,7.7012,129.95,129.94,0.05681752]
[1743184920856,26.88488719,129.95,129.94,0.05681752]
[1743184921057,26.88488719,129.95,129.88,1.9765]
[1743184921252,19.18368719,129.93,129.88,1.9765]
[1743184921449,27.96,129.92,129.88,1.9765]
[1743184921749,7.7042,129.9,129.88,1.9765]
[1743184922357,7.75359221,129.9,129.88,2.03143837]
[1743184923360,0.04939221,129.9,129.88,0.05493837]
[1743184924357,0.04939221,129.9,129.88,7.76033837]
[1743184924564,0.04939221,129.9,129.88,0.05493837]
[1743184925667,7.7048,129.89,129.88,0.05493837]
[1743184926257,7.75379221,129.9,129.88,0.05493837]
[1743184926456,0.04939221,129.9,129.88,0.05493837]
[1743184926858,0.04939221,129.9,129.88,7.75993837]
[1743184927460,0.04939221,129.9,129.89,7.7048]
[1743184927660,0.04939221,129.9,129.88,0.05493837]
[1743184928467,0.04939221,129.9,129.88,7.75983837]
[1743184929167,7.75369221,129.9,129.88,7.75983837]
[1743184929464,7.75369221,129.9,129.88,0.05493837]
[1743184930165,0.04939221,129.9,129.88,0.05493837]
[1743184930367,27.98,129.93,129.88,0.05493837]
[1743184930567,27.98,129.93,129.91,7.7033]
[1743184930968,27.98,129.94,129.89,19.18368719]
[1743184931163,27.98,129.94,129.93,7.702]
[1743184933573,0.05863378,129.95,129.94,7.7018]
[1743184935173,27.98,129.98,129.97,7.6999]
[1743184935370,27.98,129.98,129.92,1.9616]
[1743184935574,27.98,129.98,129.93,2.1417]
[1743184935876,254.04,129.99,129.93,2.1417]
[1743184936070,42.4625986,130.0,129.93,21.32538719]
[1743184936274,70.4425986,130.0,129.99,7.6989]
[1743184936476,42.4625986,130.0,129.99,7.6989]
[1743184937370,39.2312986,130.0,129.98,7.7570298]
[1743184937571,39.2312986,130.0,129.98,0.0578298]
[1743184937773,46.9295986,130.0,129.98,0.0578298]
[1743184938172,39.2312986,130.0,129.98,0.0578298]
[1743184938379,7.6989,129.99,129.98,0.0578298]
[1743184939372,7.7011,129.96,129.93,9.8438]
[1743184939677,47.16368719,129.97,129.93,9.8438]
[1743184939871,27.98,129.96,129.93,9.8438]
[1743184940376,28.03024433,129.96,129.93,9.8438]
[1743184940677,28.03024433,129.96,129.93,9.89243343]
[1743184940881,7.7012,129.95,129.93,2.19033343]
[1743184941081,28.03024433,129.96,129.93,0.04863343]
[1743184941280,19.18368719,129.95,129.93,0.04863343]
[1743184941774,28.03024433,129.96,129.93,0.04863343]
[1743184942180,35.73114433,129.96,129.93,7.75073343]
[1743184942479,35.73114433,129.96,129.93,0.04863343]
[1743184942679,35.73114433,129.96,129.93,7.75083343]
[1743184943584,7.7013,129.95,129.93,7.75083343]
[1743184943778,28.03024433,129.96,129.93,0.04863343]
[1743184943979,19.18368719,129.95,129.93,0.04863343]
[1743184944178,7.7018,129.94,129.93,0.04863343]
[1743184945180,26.88518719,129.95,129.93,0.04863343]
[1743184945583,7.7018,129.94,129.93,0.04863343]
[1743184947282,43.42506214,129.94,129.93,0.04863343]
[1743184947484,7.7033,129.92,129.89,7.7045]
[1743184947685,27.98,129.92,129.89,7.7045]
[1743184947983,7.704,129.91,129.88,9.846]
[1743184948189,27.98,129.92,129.88,2.1411]
[1743184948486,35.6833,129.92,129.9,7.7041]
[1743184948682,0.04871399,129.91,129.89,0.05345464]
[1743184948988,0.04871399,129.91,129.89,7.75785464]
[1743184949676,7.75261399,129.91,129.89,0.05345464]
[1743184950082,0.04871399,129.91,129.9,7.7042]
[1743184950889,27.98,129.92,129.91,7.7036]
[1743184952491,27.98,129.92,129.89,0.05345464]
[1743184952902,46.35985709,129.92,129.89,7.75775464]
[1743184953409,7.7039,129.91,129.89,7.75775464]
[1743184953993,27.98,129.92,129.9,7.7037]
[1743184954293,0.05657049,129.93,129.89,0.05345464]
[1743184954497,496.47897494,129.95,129.9,19.18368719]
[1743184954697,496.47897494,129.95,129.91,2.0802]
[1743184954896,496.47897494,129.95,129.94,7.7018]
[1743184956206,211.20587494,129.95,129.94,7.7018]
[1743184956704,10.73356743,129.96,129.95,7.7012]
[1743184959398,0.05376786,129.96,129.95,7.7012]
[1743184960800,0.05376786,129.96,129.94,7.7015]
[1743184961498,0.05376786,129.96,129.95,7.7012]
[1743184967699,0.05376786,129.96,129.93,0.05836657]
[1743184968099,0.05376786,129.96,129.95,7.7012]
[1743184968696,0.05376786,129.96,129.93,0.05836657]
[1743184968895,0.05376786,129.96,129.94,7.7013]
[1743184969203,0.05376786,129.96,129.93,0.05836657]
[1743184969404,0.05376786,129.96,129.95,7.7012]
[1743184971206,10.67979957,130.0,129.98,7.699]
[1743184971507,10.67979957,130.0,129.92,15.4059]
[1743184971712,47.16368719,129.99,129.93,7.7021]
[1743184971911,47.16368719,129.99,129.91,2.0802]
[1743184972099,7.701,129.96,129.91,2.0802]
[1743184972300,35.781,129.96,129.91,9.7835]
[1743184972513,0.05099022,129.95,129.92,0.05868793]
[1743184972913,7.75239022,129.95,129.92,0.05868793]
[1743184974012,0.05099022,129.95,129.92,0.05868793]
[1743184974609,7.75249022,129.95,129.92,0.05868793]
[1743184975716,7.7018,129.94,129.92,0.05868793]
[1743184976308,7.7024,129.93,129.92,0.05868793]
[1743184976505,0.05099022,129.95,129.92,0.05868793]
[1743184976809,7.7021,129.94,129.92,0.05868793]
[1743184977522,7.75249022,129.95,129.92,0.05868793]
[1743184977719,0.05099022,129.95,129.92,0.05868793]
[1743184977922,0.05099022,129.95,129.92,7.76138793]
[1743184978109,7.75269022,129.95,129.92,7.76138793]
[1743184979517,7.7018,129.94,129.92,0.05868793]
[1743184981325,7.7018,129.94,129.92,7.76168793]
[1743184982320,7.75249022,129.95,129.93,7.7024]
[1743184984925,7.75249022,129.95,129.92,7.76138793]
[1743184985127,7.75249022,129.95,129.92,0.05868793]
[1743184985423,7.75249022,129.95,129.93,7.7024]
[1743184986825,7.7018,129.94,129.92,7.76138793]
[1743184987625,7.75259022,129.95,129.92,7.76138793]
[1743184987922,0.05099022,129.95,129.92,7.76138793]
[1743184988119,7.7024,129.93,129.92,0.05868793]
[1743184988521,35.8424,129.93,129.92,0.05868793]
[1743184991319,28.14,129.93,129.92,0.05868793]
[1743184991813,10.67979957,129.94,129.92,0.05868793]
[1743184992217,10.67979957,129.94,129.93,7.7024]
[1743184993823,7.75239022,129.95,129.92,7.76138793]
[1743184995026,7.7019,129.94,129.92,7.76138793]
[1743184996628,7.75249022,129.95,129.93,7.7024]
[1743184996832,0.05099022,129.95,129.92,0.05868793]
[1743184997324,0.05099022,129.95,129.94,7.7018]
[1743184999119,42.73198156,129.98,129.97,7.7]
[1743185001533,0.05765749,129.99,129.97,7.7]
[1743185002422,0.05765749,129.99,129.98,7.6994]
[1743185002622,0.05765749,129.99,129.96,0.05550553]
[1743185003218,0.05765749,129.99,129.97,7.6996]
[1743185003727,0.05765749,129.99,129.98,7.6994]
[1743185004826,42.73198156,130.04,129.98,55.00368719]
[1743185005025,42.73198156,130.04,129.98,47.30368719]
[1743185005225,42.73198156,130.04,130.02,7.6968]
[1743185005626,42.73198156,130.04,129.98,47.30368719]
[1743185005828,42.73198156,130.04,129.98,28.12]
[1743185006031,1.131e-05,130.02,130.01,7.6973]
[1743185006333,36.26539287,130.04,130.01,28.24]
[1743185006524,42.6809595,130.08,130.02,19.18368719]
[1743185007032,42.6809595,130.08,130.01,28.24]
[1743185007325,61.86464669,130.08,130.01,28.24]
[1743185007532,61.86464669,130.08,130.05,7.6947]
[1743185007722,42.6809595,130.08,130.03,0.05131085]
[1743185008132,42.6809595,130.08,130.06,7.6943]
[1743185008332,42.6809595,130.08,130.01,47.42368719]
[1743185008525,42.6809595,130.08,130.06,0.04950416]
[1743185008725,42.6809595,130.08,130.04,7.6953]
[1743185008925,42.6809595,130.08,130.06,0.0556569]
[1743185009428,42.6809595,130.08,130.07,7.6941]
[1743185009629,85.43839656,130.09,130.06,0.0556569]
[1743185009831,275.27428719,130.12,130.06,0.0556569]
[1743185010035,7.6921,130.11,130.06,7.7500569]
[1743185010229,28.28,130.1,130.06,7.7500569]
[1743185010729,28.28,130.1,130.06,0.0556569]
[1743185011129,28.28,130.1,130.07,7.694]
[1743185011329,28.28,130.1,130.06,0.0556569]
[1743185011831,28.28,130.1,130.06,7.7502569]
[1743185012230,28.28,130.1,130.06,0.0556569]
[1743185012439,2.1306,130.12,130.06,0.0556569]
[1743185012628,30.4552,130.14,130.06,19.23934409]
[1743185012832,19.18368719,130.13,130.06,19.18368719]
[1743185013132,133.08208375,130.21,130.12,19.18368719]
[1743185013325,7.6883,130.17,130.13,7.6902]
[1743185013529,19.18368719,130.17,130.15,0.05080244]
[1743185013832,47.64368719,130.17,130.09,28.46]
[1743185014023,7.6897,130.15,130.07,47.64368719]
[1743185014227,28.46,130.17,130.12,0.05669847]
[1743185014430,28.46,130.17,130.14,7.6894]
[1743185014631,28.46,130.17,130.12,0.05669847]
[1743185015131,28.46,130.17,130.14,7.6896]
[1743185015326,28.46,130.17,130.12,0.05669847]
[1743185015529,36.1484,130.17,130.13,7.69]
[1743185017031,28.46,130.17,130.12,0.05669847]
[1743185017438,36.1485,130.17,130.13,7.6903]
[1743185017641,19.18368719,130.16,130.12,0.05669847]
[1743185017939,23.35798719,130.16,130.12,0.05669847]
[1743185018337,7.6895,130.15,130.12,0.05669847]
[1743185018535,28.52,130.14,130.12,0.05669847]
[1743185018932,28.52,130.14,130.12,7.74779847]
[1743185020133,28.52,130.14,130.13,7.6906]
[1743185020336,19.18368719,130.26,130.12,0.05669847]
[1743185020641,19.18368719,130.2,130.17,7.74622552]
[1743185020832,28.5,130.19,130.17,7.74622552]
[1743185021436,28.5,130.19,130.18,7.6876]
[1743185021632,28.5,130.19,130.17,0.05802552]
[1743185021944,36.1873,130.19,130.17,0.05802552]
[1743185022644,47.74368719,130.18,130.12,62.0]
[1743185022858,28.56,130.17,130.09,63.12868719]
[1743185023038,30.6544,130.17,130.09,63.12868719]
[1743185023343,38.3429,130.17,130.14,7.6895]
[1743185023537,38.3429,130.17,130.09,47.74368719]
[1743185023845,0.05206035,130.14,130.13,7.6901]
[1743185028353,0.05206035,130.14,130.12,7.74881387]
[1743185028743,7.74206035,130.14,130.12,7.74881387]
[1743185029155,0.05206035,130.14,130.12,7.74881387]
[1743185030151,7.74226035,130.14,130.12,7.74881387]
[1743185031552,0.05206035,130.14,130.12,7.74881387]
[1743185031755,0.05206035,130.14,130.13,7.6906]
[1743185032758,0.05206035,130.14,130.12,7.74891387]
[1743185032959,28.49206035,130.14,130.12,7.74891387]
[1743185033159,28.49206035,130.14,130.13,7.6906]
[1743185033461,0.05206035,130.14,130.12,0.05781387]
[1743185033650,0.05206035,130.14,130.13,7.6906]
[1743185035261,0.05206035,130.14,130.12,7.74871387]
[1743185035461,7.74216035,130.14,130.12,7.74871387]
[1743185036059,0.05206035,130.14,130.12,7.74871387]
[1743185036561,7.74226035,130.14,130.12,7.74871387]
[1743185036767,7.74226035,130.14,130.12,0.05781387]
[1743185037763,7.6906,130.13,130.12,0.05781387]
[1743185038364,7.6921,130.11,130.06,21.29608719]
[1743185038560,7.6921,130.11,130.09,7.6926]
[1743185038756,7.6921,130.11,130.06,21.29608719]
[1743185038961,7.6924,130.1,130.06,21.29608719]
[1743185039264,0.0526512,130.09,130.08,7.6933]
[1743185044365,28.5326512,130.09,130.07,0.05276317]
[1743185044559,28.5326512,130.09,130.02,21.13908719]
[1743185044560,47.71633839,130.09,130.02,1.9554]
[1743185045069,7.6939,130.08,130.02,1.9554]
[1743185045262,47.71633839,130.09,130.02,1.9554]
[1743185045478,47.66368719,130.09,130.02,1.9554]
[1743185045674,55.35708719,130.09,130.05,7.6949]
[1743185045877,0.05004534,130.07,130.04,0.05035421]
[1743185046070,0.05004534,130.07,130.05,7.6949]
[1743185047983,0.05004534,130.07,130.06,7.6947]
[1743185052586,0.05004534,130.07,130.04,0.05035421]
[1743185052790,28.5,130.06,130.04,0.05035421]
[1743185053185,36.195,130.06,130.04,0.05035421]
[1743185054493,28.5,130.06,130.04,0.05035421]
[1743185054884,7.6953,130.05,130.04,0.05035421]
[1743185056092,36.195,130.06,130.04,0.05035421]
[1743185056493,28.5,130.06,130.04,0.05035421]
[1743185056992,7.6953,130.05,130.04,0.05035421]
[1743185057189,28.5,130.06,130.04,0.05035421]
[1743185057384,0.05004534,130.07,130.04,0.05035421]
[1743185057793,0.05004534,130.07,130.06,7.6947]
[1743185058489,0.05004534,130.07,130.04,0.05035421]
[1743185058690,0.05004534,130.07,130.05,7.6953]
[1743185059082,0.05004534,130.07,130.04,0.05035421]
[1743185059894,0.05004534,130.07,130.05,7.6953]
[1743185060090,0.05004534,130.07,130.04,0.05035421]
[1743185060894,0.05004534,130.07,130.06,7.6947]
[1743185061690,0.05004534,130.07,130.04,0.05035421]
[1743185062090,7.695,130.06,130.04,7.74595421]
[1743185062294,0.05004534,130.07,130.04,7.74595421]
[1743185062494,7.74444534,130.07,130.05,7.695]
[1743185062998,7.6953,130.06,130.04,7.74585421]
[1743185063199,0.05004534,130.07,130.04,0.05035421]
[1743185063696,7.74444534,130.07,130.05,7.6953]
[1743185064398,7.6947,130.06,130.04,7.74595421]
[1743185064598,7.6947,130.06,130.04,0.05035421]
[1743185064792,0.05004534,130.07,130.04,0.05035421]
[1743185065392,7.6948,130.06,130.04,7.74595421]
[1743185065599,14.36350433,130.07,130.04,0.05035421]
[1743185066298,14.31345899,130.06,130.04,0.05035421]
[1743185066595,14.31345899,130.05,130.04,0.05035421]
[1743185066901,14.31345899,130.05,129.96,14.31345899]
[1743185067092,36.08,130.06,129.95,14.31345899]
[1743185067093,14.31345899,130.0,129.95,14.31345899]
[1743185067292,7.6992,129.99,129.97,7.6997]
[1743185067689,14.31345899,130.0,129.94,28.46]
[1743185067895,14.37171419,129.99,129.97,0.05109576]
[1743185068293,0.0582552,129.99,129.98,7.6994]
[1743185068494,0.0582552,129.99,129.97,0.05109576]
[1743185068891,7.7574552,129.99,129.97,0.05109576]
[1743185069697,7.6994,129.98,129.97,0.05109576]
[1743185070699,7.7005,129.97,129.91,47.63206922]
[1743185070899,7.7005,129.97,129.91,19.19206922]
[1743185071106,36.1397,129.98,129.95,7.7009]
[1743185071504,7.7005,129.97,129.94,7.7018]
[1743185071706,28.49676755,129.98,129.95,0.0577661]
[1743185071894,28.44,129.98,129.95,0.0577661]
[1743185072097,28.49088918,129.98,129.95,0.0577661]
[1743185072806,36.19058918,129.98,129.95,0.0577661]
[1743185073301,0.05088918,129.98,129.95,0.0577661]
[1743185073501,0.05088918,129.98,129.95,19.24983532]
[1743185073702,0.05088918,129.98,129.97,7.7]
[1743185077410,0.05088918,129.98,129.96,7.7005]
[1743185077608,0.05088918,129.98,129.95,2.1805661]
[1743185078109,0.05088918,129.98,129.97,7.7]
[1743185078609,0.05088918,129.98,129.96,7.7001]
[1743185079109,0.05088918,129.98,129.95,2.1805661]
[1743185079110,0.05088918,129.98,129.97,7.7]
[1743185093115,0.05088918,129.98,129.97,19.97819807]
[1743185093717,0.05088918,129.98,129.97,7.7]
[1743185097419,7.75028918,129.98,129.96,7.7004]
[1743185097722,12.32908725,129.98,129.97,7.7]
[1743185097919,0.05088918,129.98,129.97,7.7]
[1743185098513,0.05088918,129.98,129.96,7.7004]
[1743185098920,7.75028918,129.98,129.96,7.7004]
[1743185099613,0.05088918,129.98,129.97,7.7]
[1743185100315,7.75028918,129.98,129.96,7.7004]
[1743185100521,12.27819807,129.97,129.95,0.0577661]
[1743185100922,40.53819807,129.97,129.95,0.0577661]
[1743185101124,40.53819807,129.97,129.96,7.7006]
[1743185101319,28.26,129.97,129.95,0.0577661]
[1743185103723,0.05088918,129.98,129.97,7.7]
[1743185103923,42.46639564,130.02,129.97,12.27819807]
[1743185104113,42.46639564,130.02,130.0,7.6979]
[1743185104527,42.46639564,130.02,129.99,12.27819807]
[1743185104824,42.46639564,130.02,129.98,12.27819807]
[1743185105124,0.04863872,130.01,129.99,0.05922489]
[1743185105827,0.04863872,130.01,130.0,7.6977]
[1743185106430,0.04863872,130.01,129.95,28.26]
[1743185106431,12.32683679,130.01,129.93,12.27819807]
[1743185106725,12.27819807,129.97,129.92,12.27819807]
[1743185106927,48.25849807,129.97,129.92,12.27819807]
[1743185107325,40.55819807,129.97,129.92,12.27819807]
[1743185107525,40.55819807,129.97,129.95,7.7009]
[1743185107722,0.05680001,129.96,129.95,7.7009]
[1743185110322,28.24,130.01,130.0,7.6978]
[1743185110527,42.46639564,130.02,130.0,7.6978]
[1743185110528,70.70639564,130.02,130.0,7.6978]
[1743185111316,78.40369564,130.02,130.0,7.6978]
[1743185111516,78.46130054,130.02,130.0,7.75670645]
[1743185111722,70.76400054,130.02,130.0,7.75670645]
[1743185111921,70.76400054,130.02,130.0,0.05890645]
[1743185112122,28.2976049,130.02,130.0,0.05890645]
[1743185112318,0.0576049,130.02,130.0,7.75690645]
[1743185112726,0.0576049,130.02,130.0,0.05890645]
[1743185113024,7.6977,130.01,130.0,0.05890645]
[1743185113225,0.0576049,130.02,129.97,7.6995]
[1743185113425,28.22,130.01,129.97,7.6995]
[1743185113624,7.6988,130.0,129.97,7.6995]
[1743185113823,28.22,130.01,129.97,7.6995]
[1743185114133,7.6984,130.0,129.97,7.6995]
[1743185114333,28.22,130.01,129.98,0.05462753]
[1743185115031,0.0576049,130.02,129.98,0.05462753]
[1743185115931,0.0576049,130.02,130.01,7.6977]
[1743185116135,0.0576049,130.02,129.98,0.05462753]
[1743185116640,0.0576049,130.02,130.0,7.698]
[1743185116833,0.0576049,130.02,129.98,19.2537238]
[1743185117423,0.0576049,130.02,130.01,7.6977]
[1743185117629,0.0576049,130.02,129.98,0.05462753]
[1743185117834,28.5776049,130.02,129.98,0.05462753]
[1743185118039,36.2748049,130.02,130.0,7.6982]
[1743185118539,28.5776049,130.02,130.0,7.6982]
[1743185119531,36.2747049,130.02,129.99,7.6985]
[1743185120039,36.2747049,130.02,129.98,0.05462753]
[1743185120541,36.2747049,130.02,129.99,7.6987]
[1743185121042,7.6977,130.01,129.98,7.75382753]
[1743185121430,30.5929049,130.02,129.98,0.05462753]
[1743185121633,38.2902049,130.02,130.0,7.6982]
[1743185121834,30.5929049,130.02,129.98,0.05462753]
[1743185122140,30.5929049,130.02,130.0,7.6979]
[1743185122838,7.6979,130.01,129.98,7.75372753]
[1743185124041,7.6979,130.01,129.99,7.6988]
[1743185125032,7.6979,130.01,129.98,7.75382753]
[1743185125540,7.6979,130.01,129.99,7.6988]
[1743185126239,38.2903049,130.02,129.99,7.6988]
[1743185126538,30.5929049,130.02,129.98,0.05462753]
[1743185126843,7.6989,129.99,129.98,0.05462753]
[1743185128040,7.6985,130.0,129.98,7.75392753]
[1743185128341,28.4,129.99,129.98,0.05462753]
[1743185128945,36.0989,129.99,129.98,0.05462753]
[1743185129844,7.7003,129.97,129.91,62.0]
[1743185130041,47.59909627,129.99,129.91,62.0]
[1743185130440,28.4,129.99,129.92,34.60509627]
[1743185130639,28.4,129.99,129.94,19.19909627]
[1743185130849,28.4,129.99,129.98,7.6994]
[1743185135151,0.05928805,130.0,129.99,7.6989]
[1743185140343,2.1429,130.04,129.99,7.6989]
[1743185140344,30.5029,130.04,130.02,7.697]
[1743185140537,12.2817066,130.03,130.02,7.697]
[1743185141551,12.2817066,130.03,130.01,7.74600944]
[1743185141752,19.9786066,130.03,130.01,7.74600944]
[1743185141952,12.2817066,130.03,130.01,0.04870944]
[1743185142249,12.2817066,130.03,130.02,7.6971]
[1743185143442,12.33286777,130.04,130.03,7.6965]
[1743185145253,20.02896777,130.04,130.02,7.6967]
[1743185145953,12.33286777,130.04,130.02,7.6967]
[1743185146454,20.02896777,130.04,130.02,7.6967]
[1743185148953,12.33286777,130.04,130.03,7.6965]
[1743185149253,12.33286777,130.04,130.01,0.04870944]
[1743185150052,0.05116117,130.04,130.01,0.04870944]
[1743185150252,0.05116117,130.04,130.02,7.6971]
[1743185150753,0.05116117,130.04,130.01,0.04870944]
[1743185150947,0.05116117,130.04,130.02,7.6966]
[1743185151147,0.05116117,130.04,130.01,0.04870944]
[1743185152256,0.05116117,130.04,130.03,7.6965]
[1743185152754,0.05116117,130.04,130.03,19.9782066]
[1743185152943,42.46639564,130.08,130.07,7.6941]
[1743185153150,125.90010316,130.09,130.07,7.6941]
[1743185153151,54.74810224,130.09,130.07,7.6941]
[1743185153654,62.44140224,130.09,130.06,7.6944]
[1743185153956,62.49290458,130.09,130.06,7.74815034]
[1743185154257,19.9753066,130.08,130.06,7.74815034]
[1743185154554,12.2817066,130.08,130.06,7.74815034]
[1743185155148,12.2817066,130.08,130.07,7.6941]
[1743185156559,12.33320894,130.09,130.08,7.6935]
[1743185156758,12.33320894,130.09,130.06,0.05375034]
[1743185156957,12.2817066,130.08,130.06,0.05375034]
[1743185157158,12.2817066,130.08,130.07,7.6941]
[1743185157458,12.33320894,130.09,130.06,0.05375034]
[1743185157857,12.33320894,130.09,130.07,7.6941]
[1743185158054,12.33320894,130.09,130.06,0.05375034]
[1743185158450,12.33320894,130.09,130.08,7.6935]
[1743185158646,20.02620894,130.09,130.06,0.05375034]
[1743185158860,12.2817066,130.08,130.06,0.05375034]
[1743185159262,12.2817066,130.08,130.06,7.74805034]